[Event "*** Titled Tuesday Blitz"]
[Site "Chess.com"]
[Date "2021.03.30"]
[Round "7"]
[White "KarateBaby"]
[Black "dachessmandan"]
[Result "0-1"]
[WhiteElo "2318"]
[BlackElo "2494"]
[TimeControl "180+1"]
[EndTime "11:15:37 PDT"]
[Termination "dachessmandan won by resignation"]

1. Nf3 {[%clk 0:02:53]} 1... Nf6 {[%clk 0:02:59.4]} 2. c4 {[%clk 0:02:53.9]}
2... e6 {[%clk 0:02:58.1]} 3. Nc3 {[%clk 0:02:49.3]} 3... d5 {[%clk 0:02:58.1]}
4. e3 {[%clk 0:02:42.3]} 4... Be7 {[%clk 0:02:55]} 5. b3 {[%clk 0:02:36.6]} 5...
O-O {[%clk 0:02:53.9]} 6. Bb2 {[%clk 0:02:36.6]} 6... c5 {[%clk 0:02:50.1]} 7.
cxd5 {[%clk 0:02:36.7]} 7... exd5 {[%clk 0:02:48.6]} 8. d4 {[%clk 0:02:36.7]}
8... Nc6 {[%clk 0:02:45.9]} 9. Be2 {[%clk 0:02:36.1]} 9... Qb6 {[%clk
0:02:17.6]} 10. dxc5 {[%clk 0:02:11.1]} 10... Qxc5 {[%clk 0:02:11.4]} 11. O-O
{[%clk 0:02:06.2]} 11... Bg4 {[%clk 0:02:06.4]} 12. Rc1 {[%clk 0:02:05]} 12...
Rad8 {[%clk 0:01:56.1]} 13. Na4 {[%clk 0:01:59.5]} 13... Qa5 {[%clk 0:01:47.5]}
14. h3 {[%clk 0:01:48.4]} 14... Bh5 {[%clk 0:01:42.8]} 15. Qc2 {[%clk
0:01:40.6]} 15... Rfe8 {[%clk 0:01:31.1]} 16. Rfd1 {[%clk 0:01:40]} 16... Bg6
{[%clk 0:01:26.1]} 17. Bd3 {[%clk 0:01:34]} 17... Nb4 {[%clk 0:01:23.3]} 18. Qc3
{[%clk 0:01:27.3]} 18... Bxd3 {[%clk 0:01:04.5]} 19. Rxd3 {[%clk 0:01:23.8]}
19... Qa6 {[%clk 0:01:02.3]} 20. Rd2 {[%clk 0:01:18.6]} 20... Nxa2 {[%clk
0:01:01]} 0-1

[Event "*** Titled Tuesday Blitz"]
[Site "Chess.com"]
[Date "2021.03.30"]
[Round "7"]
[White "Julianos82"]
[Black "kubal123"]
[Result "1-0"]
[WhiteElo "2374"]
[BlackElo "2237"]
[TimeControl "180+1"]
[EndTime "11:15:39 PDT"]
[Termination "Julianos82 won by resignation"]

1. d4 {[%clk 0:03:00.6]} 1... g6 {[%clk 0:02:58.4]} 2. h4 {[%clk 0:02:59]} 2...
Nf6 {[%clk 0:02:54.3]} 3. h5 {[%clk 0:02:58.1]} 3... Nxh5 {[%clk 0:02:54.2]} 4.
Rxh5 {[%clk 0:02:57.6]} 4... gxh5 {[%clk 0:02:55.1]} 5. e4 {[%clk 0:02:58.1]}
5... d6 {[%clk 0:02:52]} 6. Bc4 {[%clk 0:02:57]} 6... e6 {[%clk 0:02:46.5]} 7.
Qxh5 {[%clk 0:02:55.8]} 7... Qf6 {[%clk 0:02:45]} 8. Nf3 {[%clk 0:02:53.8]} 8...
Qg6 {[%clk 0:02:43.9]} 9. Qh4 {[%clk 0:02:38.2]} 9... Be7 {[%clk 0:02:43.4]} 10.
Qf4 {[%clk 0:02:38]} 10... Nd7 {[%clk 0:02:16.9]} 11. Nc3 {[%clk 0:02:36.5]}
11... c6 {[%clk 0:02:11.8]} 12. Be3 {[%clk 0:02:31.3]} 12... Qf6 {[%clk
0:02:00.3]} 13. Qh2 {[%clk 0:02:27.6]} 13... d5 {[%clk 0:01:58.7]} 14. Bd3
{[%clk 0:02:27]} 14... Nf8 {[%clk 0:01:53.1]} 15. O-O-O {[%clk 0:02:20.9]} 15...
Ng6 {[%clk 0:01:49.7]} 16. Bg5 {[%clk 0:02:03.4]} 16... Qg7 {[%clk 0:01:47.5]}
17. Bh6 {[%clk 0:02:03.3]} 17... Qf6 {[%clk 0:01:43.9]} 18. e5 {[%clk
0:01:57.4]} 18... Qxf3 {[%clk 0:00:40.4]} 19. gxf3 {[%clk 0:01:55]} 19... Bd8
{[%clk 0:00:39.2]} 20. Bg7 {[%clk 0:01:50.9]} 20... Rg8 {[%clk 0:00:33.9]} 21.
Qxh7 {[%clk 0:01:50.3]} 21... Bg5+ {[%clk 0:00:32]} 22. Kb1 {[%clk 0:01:48.1]}
1-0

[Event "*** Titled Tuesday Blitz"]
[Site "Chess.com"]
[Date "2021.03.30"]
[Round "7"]
[White "J36225"]
[Black "ARMQUEEN"]
[Result "0-1"]
[WhiteElo "2477"]
[BlackElo "2329"]
[TimeControl "180+1"]
[EndTime "11:15:57 PDT"]
[Termination "ARMQUEEN won by resignation"]

1. e4 {[%clk 0:03:00.9]} 1... c5 {[%clk 0:02:59.4]} 2. Nf3 {[%clk 0:03:00.6]}
2... Nc6 {[%clk 0:02:56.2]} 3. Bb5 {[%clk 0:02:59.9]} 3... g6 {[%clk 0:02:54.9]}
4. Bxc6 {[%clk 0:02:58.5]} 4... dxc6 {[%clk 0:02:53.4]} 5. d3 {[%clk 0:02:56.9]}
5... Bg7 {[%clk 0:02:53.4]} 6. h3 {[%clk 0:02:54.3]} 6... Nf6 {[%clk 0:02:53.5]}
7. O-O {[%clk 0:02:53.8]} 7... Nd7 {[%clk 0:02:50.5]} 8. Nc3 {[%clk 0:02:53.5]}
8... e5 {[%clk 0:02:47.8]} 9. a3 {[%clk 0:02:53.3]} 9... a5 {[%clk 0:02:46.9]}
10. Be3 {[%clk 0:02:47.5]} 10... b6 {[%clk 0:02:46.7]} 11. b4 {[%clk 0:02:43.9]}
11... axb4 {[%clk 0:02:41.6]} 12. axb4 {[%clk 0:02:43.8]} 12... Rxa1 {[%clk
0:02:41.4]} 13. Qxa1 {[%clk 0:02:43.1]} 13... cxb4 {[%clk 0:02:41.3]} 14. Na4
{[%clk 0:02:40]} 14... c5 {[%clk 0:02:40.2]} 15. c3 {[%clk 0:02:39.1]} 15...
bxc3 {[%clk 0:02:39.8]} 16. Nxc3 {[%clk 0:02:39.1]} 16... O-O {[%clk 0:02:39.4]}
17. Nd5 {[%clk 0:02:36.1]} 17... Bb7 {[%clk 0:02:31.4]} 18. Qa7 {[%clk
0:02:18.7]} 18... Bxd5 {[%clk 0:02:24.2]} 19. exd5 {[%clk 0:02:18.3]} 19... f5
{[%clk 0:02:23.7]} 20. Bg5 {[%clk 0:02:11.8]} 20... Qc8 {[%clk 0:02:09.4]} 21.
d6 {[%clk 0:02:06.3]} 21... e4 {[%clk 0:02:05.5]} 22. dxe4 {[%clk 0:01:59.8]}
22... fxe4 {[%clk 0:02:06.4]} 23. Nd2 {[%clk 0:01:59.3]} 23... Qc6 {[%clk
0:02:03.2]} 24. Be7 {[%clk 0:01:49]} 24... Rc8 {[%clk 0:01:57.9]} 25. Nxe4
{[%clk 0:01:44.4]} 25... c4 {[%clk 0:01:42.9]} 26. Qa3 {[%clk 0:01:02.1]} 26...
Qxe4 {[%clk 0:01:37.2]} 27. Qa4 {[%clk 0:00:56.5]} 27... Qc6 {[%clk 0:01:35.9]}
28. Qxc6 {[%clk 0:00:51.5]} 28... Rxc6 {[%clk 0:01:36.8]} 29. Ra1 {[%clk
0:00:52.1]} 29... Bxa1 {[%clk 0:01:33.3]} 0-1

[Event "*** Titled Tuesday Blitz"]
[Site "Chess.com"]
[Date "2021.03.30"]
[Round "7"]
[White "IsaacWiebe"]
[Black "Deepweb2020"]
[Result "0-1"]
[WhiteElo "2292"]
[BlackElo "2501"]
[TimeControl "180+1"]
[EndTime "11:16:00 PDT"]
[Termination "Deepweb2020 won by checkmate"]

1. d4 {[%clk 0:03:00.9]} 1... Nf6 {[%clk 0:03:00]} 2. c4 {[%clk 0:03:00.8]} 2...
e6 {[%clk 0:03:00.4]} 3. Nf3 {[%clk 0:03:00.6]} 3... Bb4+ {[%clk 0:03:01]} 4.
Nbd2 {[%clk 0:03:00.8]} 4... b6 {[%clk 0:03:01]} 5. g3 {[%clk 0:03:00.9]} 5...
Bb7 {[%clk 0:03:00.4]} 6. Bg2 {[%clk 0:03:01.2]} 6... O-O {[%clk 0:03:00.8]} 7.
O-O {[%clk 0:03:01.3]} 7... c5 {[%clk 0:02:59.1]} 8. d5 {[%clk 0:02:26.3]} 8...
exd5 {[%clk 0:02:58.5]} 9. Nb1 {[%clk 0:02:23.4]} 9... b5 {[%clk 0:02:51.4]} 10.
cxb5 {[%clk 0:02:13.2]} 10... d4 {[%clk 0:02:51.5]} 11. a3 {[%clk 0:02:05.6]}
11... Ba5 {[%clk 0:02:51.4]} 12. b4 {[%clk 0:02:01.6]} 12... cxb4 {[%clk
0:02:51.4]} 13. axb4 {[%clk 0:02:01.9]} 13... Bxb4 {[%clk 0:02:43.1]} 14. Qxd4
{[%clk 0:02:01.9]} 14... a5 {[%clk 0:02:38.7]} 15. Nc3 {[%clk 0:01:45.7]} 15...
Re8 {[%clk 0:02:27.8]} 16. Bg5 {[%clk 0:01:33.1]} 16... Be7 {[%clk 0:02:22.8]}
17. Rfd1 {[%clk 0:01:26.6]} 17... d6 {[%clk 0:02:22.8]} 18. Nh4 {[%clk
0:01:15.2]} 18... Bxg2 {[%clk 0:02:21.7]} 19. Kxg2 {[%clk 0:01:15]} 19... h6
{[%clk 0:02:21.7]} 20. Be3 {[%clk 0:00:57.8]} 20... g6 {[%clk 0:02:12.7]} 21.
Bxh6 {[%clk 0:00:49.5]} 21... Nbd7 {[%clk 0:02:12.5]} 22. Nd5 {[%clk 0:00:39.7]}
22... Ne5 {[%clk 0:02:09.5]} 23. Nxe7+ {[%clk 0:00:35.7]} 23... Qxe7 {[%clk
0:02:07]} 24. Qxd6 {[%clk 0:00:33.6]} 24... Qb7+ {[%clk 0:02:07.2]} 25. Kg1
{[%clk 0:00:29.2]} 25... Nfg4 {[%clk 0:02:07.3]} 26. Bf4 {[%clk 0:00:20.4]}
26... Rad8 {[%clk 0:02:06.7]} 27. Qxd8 {[%clk 0:00:19.9]} 27... Rxd8 {[%clk
0:02:07.6]} 28. Rxd8+ {[%clk 0:00:20.1]} 28... Kg7 {[%clk 0:02:08.3]} 29. Rxa5
{[%clk 0:00:17.5]} 29... Qb6 {[%clk 0:02:05.3]} 30. Raa8 {[%clk 0:00:16.6]}
30... Qxf2+ {[%clk 0:02:05]} 31. Kh1 {[%clk 0:00:17.3]} 31... Qxh2# {[%clk
0:02:05.1]} 0-1

[Event "*** Titled Tuesday Blitz"]
[Site "Chess.com"]
[Date "2021.03.30"]
[Round "7"]
[White "Vanina1989"]
[Black "muchojogo"]
[Result "1-0"]
[WhiteElo "2766"]
[BlackElo "2440"]
[TimeControl "180+1"]
[EndTime "11:16:18 PDT"]
[Termination "Vanina1989 won by resignation"]

1. d4 {[%clk 0:03:00.9]} 1... Nf6 {[%clk 0:02:59.9]} 2. c4 {[%clk 0:02:57.9]}
2... c5 {[%clk 0:03:00]} 3. d5 {[%clk 0:02:58]} 3... b5 {[%clk 0:03:00.6]} 4. a4
{[%clk 0:02:58.3]} 4... bxc4 {[%clk 0:02:29.2]} 5. Nc3 {[%clk 0:02:58.1]} 5...
g6 {[%clk 0:02:28.4]} 6. e4 {[%clk 0:02:58.4]} 6... d6 {[%clk 0:02:29]} 7. Bxc4
{[%clk 0:02:58.9]} 7... Bg7 {[%clk 0:02:29.4]} 8. Nf3 {[%clk 0:02:59.5]} 8...
O-O {[%clk 0:02:30]} 9. O-O {[%clk 0:02:59.2]} 9... a5 {[%clk 0:02:30.5]} 10. h3
{[%clk 0:02:58.9]} 10... Ba6 {[%clk 0:02:30.7]} 11. Bb5 {[%clk 0:02:58.6]} 11...
Qb6 {[%clk 0:02:26.1]} 12. Qe2 {[%clk 0:02:58.6]} 12... Nbd7 {[%clk 0:02:21]}
13. Nd2 {[%clk 0:02:58.8]} 13... Qb7 {[%clk 0:02:11.5]} 14. Nc4 {[%clk
0:02:57.5]} 14... Bxb5 {[%clk 0:02:11.2]} 15. axb5 {[%clk 0:02:57.5]} 15... a4
{[%clk 0:01:59.5]} 16. Bf4 {[%clk 0:02:44.1]} 16... Ne8 {[%clk 0:01:58.3]} 17.
Bg5 {[%clk 0:02:41.8]} 17... Bf6 {[%clk 0:01:36.3]} 18. Bxf6 {[%clk 0:02:41.5]}
18... Ndxf6 {[%clk 0:01:35]} 19. Qc2 {[%clk 0:02:24.9]} 19... Nc7 {[%clk
0:01:24.5]} 20. b6 {[%clk 0:02:24.7]} 20... Na6 {[%clk 0:01:24.9]} 21. Rxa4
{[%clk 0:02:23.8]} 21... Nb4 {[%clk 0:01:24.7]} 22. Qd1 {[%clk 0:02:23.2]} 22...
Rxa4 {[%clk 0:01:23.7]} 23. Qxa4 {[%clk 0:02:23.3]} 23... Ra8 {[%clk 0:01:24.1]}
24. Qb5 {[%clk 0:02:23.4]} 24... Ra6 {[%clk 0:01:07.5]} 25. Na4 {[%clk
0:02:18.9]} 25... Nxe4 {[%clk 0:00:36.8]} 26. Na5 {[%clk 0:02:16]} 26... Rxa5
{[%clk 0:00:30.5]} 27. Qxa5 {[%clk 0:02:16]} 27... Nxd5 {[%clk 0:00:31.4]} 28.
Qa7 {[%clk 0:02:13.4]} 28... Qxa7 {[%clk 0:00:14.3]} 29. bxa7 {[%clk 0:02:13.4]}
29... Nc7 {[%clk 0:00:15.2]} 30. Nb6 {[%clk 0:02:13.4]} 30... e6 {[%clk
0:00:11]} 31. Rd1 {[%clk 0:02:10.3]} 31... d5 {[%clk 0:00:10.4]} 32. Rc1 {[%clk
0:02:10]} 32... c4 {[%clk 0:00:07.5]} 33. Nxc4 {[%clk 0:02:09.5]} 33... dxc4
{[%clk 0:00:03.9]} 34. Rxc4 {[%clk 0:02:09.6]} 34... Na8 {[%clk 0:00:03.3]} 1-0

[Event "*** Titled Tuesday Blitz"]
[Site "Chess.com"]
[Date "2021.03.30"]
[Round "7"]
[White "Nesty_Javi_Chess"]
[Black "profofchess"]
[Result "1-0"]
[WhiteElo "2619"]
[BlackElo "2447"]
[TimeControl "180+1"]
[EndTime "11:16:19 PDT"]
[Termination "Nesty_Javi_Chess won by resignation"]

1. e4 {[%clk 0:03:00.9]} 1... e6 {[%clk 0:03:00.2]} 2. d4 {[%clk 0:03:00.7]}
2... d5 {[%clk 0:03:00.8]} 3. Nd2 {[%clk 0:02:59.1]} 3... e5 {[%clk 0:03:00.7]}
4. exd5 {[%clk 0:02:57.5]} 4... exd4 {[%clk 0:03:00.5]} 5. Ngf3 {[%clk
0:02:57.5]} 5... Nf6 {[%clk 0:03:00.5]} 6. Bc4 {[%clk 0:02:57.7]} 6... Qe7+
{[%clk 0:02:58.6]} 7. Qe2 {[%clk 0:02:49.7]} 7... Qxe2+ {[%clk 0:02:49.7]} 8.
Kxe2 {[%clk 0:02:50.6]} 8... c5 {[%clk 0:02:39.1]} 9. dxc6 {[%clk 0:02:49.9]}
9... Nxc6 {[%clk 0:02:39.2]} 10. Nb3 {[%clk 0:02:50.6]} 10... Bg4 {[%clk
0:02:26.6]} 11. Re1 {[%clk 0:02:48]} 11... Bb4 {[%clk 0:02:17.1]} 12. Bd2 {[%clk
0:02:48.1]} 12... O-O {[%clk 0:02:15.1]} 13. Bxb4 {[%clk 0:02:28.3]} 13... Nxb4
{[%clk 0:02:16]} 14. Nxd4 {[%clk 0:02:28.6]} 14... Rac8 {[%clk 0:02:08.8]} 15.
Bb3 {[%clk 0:02:28]} 15... Rfd8 {[%clk 0:01:22.1]} 16. c3 {[%clk 0:02:19.6]}
16... Nbd5 {[%clk 0:00:54]} 17. Kf1 {[%clk 0:02:17]} 17... Nf4 {[%clk
0:00:48.8]} 18. Rad1 {[%clk 0:02:16.4]} 18... h6 {[%clk 0:00:34.2]} 19. Rd2
{[%clk 0:02:15.5]} 19... b5 {[%clk 0:00:30]} 20. Ne5 {[%clk 0:02:09.7]} 20... b4
{[%clk 0:00:25.6]} 21. Nxf7 {[%clk 0:02:07.4]} 21... bxc3 {[%clk 0:00:17.9]} 22.
Nxd8+ {[%clk 0:02:04.4]} 22... Kh7 {[%clk 0:00:18.3]} 23. bxc3 {[%clk
0:02:04.9]} 23... Rxd8 {[%clk 0:00:17.9]} 24. h3 {[%clk 0:02:05]} 24... Bc8
{[%clk 0:00:16.9]} 25. Red1 {[%clk 0:01:59.8]} 25... Bb7 {[%clk 0:00:16.9]} 26.
f3 {[%clk 0:01:59.6]} 26... N6h5 {[%clk 0:00:16.2]} 27. Kf2 {[%clk 0:01:59.4]}
27... Rc8 {[%clk 0:00:08.8]} 28. Ne6 {[%clk 0:01:58.7]} 28... Nxe6 {[%clk
0:00:08.2]} 29. Bxe6 {[%clk 0:01:59.6]} 29... Rxc3 {[%clk 0:00:08.2]} 30. Bf5+
{[%clk 0:01:59.7]} 30... g6 {[%clk 0:00:07.1]} 31. Rd7+ {[%clk 0:01:59.6]} 31...
Ng7 {[%clk 0:00:07.8]} 32. Rxb7 {[%clk 0:01:58.9]} 32... gxf5 {[%clk 0:00:07.4]}
33. Rdd7 {[%clk 0:01:58.8]} 33... Rc2+ {[%clk 0:00:07.7]} 34. Kg1 {[%clk
0:01:59.1]} 1-0

[Event "*** Titled Tuesday Blitz"]
[Site "Chess.com"]
[Date "2021.03.30"]
[Round "7"]
[White "Gloomy_Wanderer"]
[Black "LastHeroJr"]
[Result "1-0"]
[WhiteElo "2712"]
[BlackElo "2552"]
[TimeControl "180+1"]
[EndTime "11:16:26 PDT"]
[Termination "Gloomy_Wanderer won by resignation"]

1. d4 {[%clk 0:03:00.9]} 1... Nf6 {[%clk 0:02:59.7]} 2. Nf3 {[%clk 0:03:01]}
2... g6 {[%clk 0:02:59.9]} 3. c4 {[%clk 0:03:01.7]} 3... Bg7 {[%clk 0:03:00.2]}
4. g3 {[%clk 0:03:02.4]} 4... O-O {[%clk 0:03:00.1]} 5. Bg2 {[%clk 0:03:02.8]}
5... d6 {[%clk 0:03:00.7]} 6. O-O {[%clk 0:03:02.7]} 6... Nbd7 {[%clk
0:03:01.1]} 7. Nc3 {[%clk 0:03:02.8]} 7... e5 {[%clk 0:03:01.4]} 8. e4 {[%clk
0:03:03.3]} 8... exd4 {[%clk 0:03:01.3]} 9. Nxd4 {[%clk 0:03:04.2]} 9... Re8
{[%clk 0:03:01.7]} 10. h3 {[%clk 0:03:04.7]} 10... a6 {[%clk 0:03:02.1]} 11. Re1
{[%clk 0:03:03.2]} 11... Rb8 {[%clk 0:03:02.2]} 12. Bg5 {[%clk 0:03:03.4]} 12...
h6 {[%clk 0:03:01.8]} 13. Be3 {[%clk 0:03:03.4]} 13... Ne5 {[%clk 0:03:00.9]}
14. b3 {[%clk 0:03:03.2]} 14... c5 {[%clk 0:03:01.1]} 15. Nde2 {[%clk
0:03:03.5]} 15... b5 {[%clk 0:03:01.4]} 16. f4 {[%clk 0:03:03.8]} 16... Ned7
{[%clk 0:02:53.4]} 17. Qxd6 {[%clk 0:03:03.8]} 17... b4 {[%clk 0:02:51.5]} 18.
e5 {[%clk 0:03:04.2]} 18... bxc3 {[%clk 0:02:30.5]} 19. Nxc3 {[%clk 0:03:05.1]}
19... Nh5 {[%clk 0:02:23.5]} 20. g4 {[%clk 0:03:01.4]} 20... Bf8 {[%clk
0:02:23]} 21. Qd2 {[%clk 0:02:59.6]} 21... Ng7 {[%clk 0:02:23]} 22. Rad1 {[%clk
0:02:54.1]} 22... Qa5 {[%clk 0:02:16.1]} 23. Ne4 {[%clk 0:02:46.4]} 23... Qxd2
{[%clk 0:02:10.8]} 24. Rxd2 {[%clk 0:02:47.3]} 24... g5 {[%clk 0:02:04.6]} 25.
Rxd7 {[%clk 0:02:42.9]} 25... Bxd7 {[%clk 0:01:57.2]} 26. Nf6+ {[%clk
0:02:42.7]} 26... Kh8 {[%clk 0:01:57.5]} 27. Nxd7 {[%clk 0:02:43.5]} 27... Rbd8
{[%clk 0:01:56.3]} 28. Nxf8 {[%clk 0:02:42.4]} 28... Rxf8 {[%clk 0:01:57.2]} 29.
Bxc5 {[%clk 0:02:42.7]} 29... Rfe8 {[%clk 0:01:57.3]} 30. f5 {[%clk 0:02:42.8]}
30... Rd2 {[%clk 0:01:51.2]} 31. e6 {[%clk 0:02:38.5]} 31... Nxe6 {[%clk
0:00:59.7]} 32. fxe6 {[%clk 0:02:33.3]} 32... Rxe6 {[%clk 0:01:00.6]} 33. Rxe6
{[%clk 0:02:21]} 33... fxe6 {[%clk 0:01:01.5]} 34. Bb6 {[%clk 0:02:20.6]} 34...
Rxa2 {[%clk 0:00:41.9]} 35. c5 {[%clk 0:02:19.1]} 35... Ra1+ {[%clk 0:00:37]}
36. Kh2 {[%clk 0:02:18.7]} 36... Rc1 {[%clk 0:00:32.6]} 37. Bb7 {[%clk
0:02:16.8]} 37... Rc2+ {[%clk 0:00:29.5]} 38. Kg1 {[%clk 0:02:16.4]} 38... Rc3
{[%clk 0:00:14.7]} 39. c6 {[%clk 0:02:14]} 39... Rxb3 {[%clk 0:00:08.7]} 40. c7
{[%clk 0:02:13]} 1-0

[Event "*** Titled Tuesday Blitz"]
[Site "Chess.com"]
[Date "2021.03.30"]
[Round "7"]
[White "AlexSuv"]
[Black "Pikachess999"]
[Result "1-0"]
[WhiteElo "2550"]
[BlackElo "2358"]
[TimeControl "180+1"]
[EndTime "11:16:27 PDT"]
[Termination "AlexSuv won by resignation"]

1. d4 {[%clk 0:03:00.9]} 1... d5 {[%clk 0:02:59.3]} 2. c4 {[%clk 0:02:59.6]}
2... e6 {[%clk 0:02:59.3]} 3. Nc3 {[%clk 0:03:00]} 3... Nf6 {[%clk 0:02:59.1]}
4. cxd5 {[%clk 0:02:59.9]} 4... exd5 {[%clk 0:02:59]} 5. Bg5 {[%clk 0:02:59.6]}
5... Be7 {[%clk 0:02:58.2]} 6. e3 {[%clk 0:03:00.1]} 6... O-O {[%clk 0:02:58.2]}
7. Bd3 {[%clk 0:03:00.5]} 7... c6 {[%clk 0:02:57.7]} 8. Nf3 {[%clk 0:02:59.4]}
8... Nbd7 {[%clk 0:02:54.5]} 9. O-O {[%clk 0:02:58.4]} 9... Re8 {[%clk
0:02:53.6]} 10. h3 {[%clk 0:02:56.6]} 10... Nf8 {[%clk 0:02:52.7]} 11. Qc2
{[%clk 0:02:56.6]} 11... Ng6 {[%clk 0:02:46.2]} 12. Bxf6 {[%clk 0:02:52.9]}
12... Bxf6 {[%clk 0:02:45.8]} 13. b4 {[%clk 0:02:53.8]} 13... a6 {[%clk
0:02:44.5]} 14. a4 {[%clk 0:02:54.2]} 14... Bd7 {[%clk 0:02:41.6]} 15. b5 {[%clk
0:02:50.5]} 15... axb5 {[%clk 0:02:40.8]} 16. axb5 {[%clk 0:02:51.4]} 16... Qb6
{[%clk 0:02:38.1]} 17. Na4 {[%clk 0:02:47.2]} 17... Qc7 {[%clk 0:02:32.1]} 18.
Nc5 {[%clk 0:02:33]} 18... cxb5 {[%clk 0:02:17.1]} 19. Nxd7 {[%clk 0:02:32.6]}
19... Qxd7 {[%clk 0:02:18]} 20. Qb3 {[%clk 0:02:33.1]} 20... Ne7 {[%clk
0:02:06.7]} 21. Bxb5 {[%clk 0:02:25.6]} 21... Nc6 {[%clk 0:02:06.5]} 22. Rac1
{[%clk 0:02:25.6]} 22... Rac8 {[%clk 0:02:00.8]} 23. Rc5 {[%clk 0:02:24.9]}
23... Red8 {[%clk 0:01:55.1]} 24. Rfc1 {[%clk 0:02:24.3]} 24... Be7 {[%clk
0:01:53.8]} 25. R5c2 {[%clk 0:02:15.7]} 25... Qe6 {[%clk 0:01:51.3]} 26. Qa4
{[%clk 0:02:07]} 26... Nb4 {[%clk 0:01:45.9]} 27. Rxc8 {[%clk 0:01:51.1]} 27...
Rxc8 {[%clk 0:01:46.8]} 28. Rb1 {[%clk 0:01:51]} 28... Qd6 {[%clk 0:01:36.7]}
29. Ne5 {[%clk 0:01:47.3]} 29... f6 {[%clk 0:01:25.9]} 30. Nd3 {[%clk
0:01:47.1]} 30... Nc6 {[%clk 0:00:56.3]} 31. Nc5 {[%clk 0:01:43]} 31... Qc7
{[%clk 0:00:49.2]} 32. Bxc6 {[%clk 0:01:40.2]} 32... bxc6 {[%clk 0:00:47.6]} 33.
Rb7 {[%clk 0:01:35.3]} 33... Qd8 {[%clk 0:00:47.6]} 34. Qa7 {[%clk 0:01:32.6]}
34... Bf8 {[%clk 0:00:44.2]} 35. Ne6 {[%clk 0:01:28.9]} 1-0

[Event "*** Titled Tuesday Blitz"]
[Site "Chess.com"]
[Date "2021.03.30"]
[Round "7"]
[White "Soltan49"]
[Black "MaevskiyNikolay"]
[Result "0-1"]
[WhiteElo "2247"]
[BlackElo "2536"]
[TimeControl "180+1"]
[EndTime "11:16:35 PDT"]
[Termination "MaevskiyNikolay won by resignation"]

1. Nf3 {[%clk 0:03:00.9]} 1... d5 {[%clk 0:02:58.3]} 2. e3 {[%clk 0:02:57.8]}
2... Bg4 {[%clk 0:02:55]} 3. c4 {[%clk 0:02:54.4]} 3... dxc4 {[%clk 0:02:44.9]}
4. Bxc4 {[%clk 0:02:52.1]} 4... e6 {[%clk 0:02:45]} 5. d4 {[%clk 0:02:50.3]}
5... Nd7 {[%clk 0:02:40]} 6. Qb3 {[%clk 0:02:50]} 6... Rb8 {[%clk 0:02:37.5]} 7.
Nc3 {[%clk 0:02:47.8]} 7... Ngf6 {[%clk 0:02:34.6]} 8. Nd2 {[%clk 0:02:35.1]}
8... a6 {[%clk 0:02:33.8]} 9. f3 {[%clk 0:02:33.1]} 9... Bh5 {[%clk 0:02:32.5]}
10. e4 {[%clk 0:02:29.4]} 10... b5 {[%clk 0:02:28.3]} 11. Be2 {[%clk 0:02:29.5]}
11... c5 {[%clk 0:02:28.3]} 12. dxc5 {[%clk 0:02:19.4]} 12... Bxc5 {[%clk
0:02:26]} 13. Nf1 {[%clk 0:02:19]} 13... O-O {[%clk 0:02:23.2]} 14. Be3 {[%clk
0:02:18.9]} 14... Qb6 {[%clk 0:02:23]} 15. Bxc5 {[%clk 0:02:17.1]} 15... Nxc5
{[%clk 0:02:23.3]} 16. Qc2 {[%clk 0:02:17.3]} 16... Rbc8 {[%clk 0:02:23.1]} 17.
a3 {[%clk 0:02:13.1]} 17... Rfd8 {[%clk 0:02:20.6]} 18. Ng3 {[%clk 0:02:07.7]}
18... Bg6 {[%clk 0:02:19.9]} 19. Rd1 {[%clk 0:01:47.8]} 19... h6 {[%clk
0:02:13.2]} 20. Nf1 {[%clk 0:01:09.9]} 20... Rxd1+ {[%clk 0:01:47.3]} 21. Qxd1
{[%clk 0:01:07.3]} 21... Rd8 {[%clk 0:01:42.6]} 22. Qc2 {[%clk 0:01:06.4]} 22...
Nd5 {[%clk 0:01:34.2]} 23. g3 {[%clk 0:00:31]} 23... b4 {[%clk 0:01:28.3]} 24.
axb4 {[%clk 0:00:29]} 24... Qxb4 {[%clk 0:01:28.2]} 25. Nd2 {[%clk 0:00:21]}
25... Ne3 {[%clk 0:01:23]} 26. Qb3 {[%clk 0:00:21.2]} 26... Nxb3 {[%clk
0:01:22.3]} 0-1

[Event "*** Titled Tuesday Blitz"]
[Site "Chess.com"]
[Date "2021.03.30"]
[Round "7"]
[White "andriipalchuk"]
[Black "mac0504"]
[Result "0-1"]
[WhiteElo "2613"]
[BlackElo "2473"]
[TimeControl "180+1"]
[EndTime "11:16:40 PDT"]
[Termination "mac0504 won by resignation"]

1. d4 {[%clk 0:03:00.9]} 1... Nf6 {[%clk 0:02:59.6]} 2. c4 {[%clk 0:03:00.9]}
2... e6 {[%clk 0:02:58.9]} 3. Nc3 {[%clk 0:03:00.3]} 3... Bb4 {[%clk 0:02:58.6]}
4. Nf3 {[%clk 0:02:58.8]} 4... O-O {[%clk 0:02:56.5]} 5. g3 {[%clk 0:02:58.1]}
5... d6 {[%clk 0:02:55.3]} 6. Bg2 {[%clk 0:02:57.8]} 6... Bxc3+ {[%clk
0:02:47.5]} 7. bxc3 {[%clk 0:02:57.8]} 7... Nc6 {[%clk 0:02:48.4]} 8. O-O {[%clk
0:02:57.3]} 8... e5 {[%clk 0:02:48.1]} 9. h3 {[%clk 0:02:36.7]} 9... Rb8 {[%clk
0:02:39.6]} 10. Be3 {[%clk 0:02:27.7]} 10... Qe7 {[%clk 0:02:30.3]} 11. Nd2
{[%clk 0:02:18.2]} 11... Na5 {[%clk 0:02:24.9]} 12. dxe5 {[%clk 0:01:49.5]}
12... dxe5 {[%clk 0:02:11.5]} 13. Bxa7 {[%clk 0:01:48.7]} 13... Ra8 {[%clk
0:02:08.9]} 14. Be3 {[%clk 0:01:49.3]} 14... Ra6 {[%clk 0:01:59.1]} 15. Nb3
{[%clk 0:01:36.2]} 15... Nxc4 {[%clk 0:01:55.6]} 16. Bc5 {[%clk 0:01:34.9]}
16... Nd6 {[%clk 0:01:55.8]} 17. Be3 {[%clk 0:01:02.2]} 17... b6 {[%clk
0:01:52.4]} 18. Qd3 {[%clk 0:00:49.9]} 18... Ra4 {[%clk 0:01:44.5]} 19. Rfd1
{[%clk 0:00:47.2]} 19... Bf5 {[%clk 0:01:29.9]} 20. Qd2 {[%clk 0:00:42.7]} 20...
Nfe4 {[%clk 0:01:13.4]} 21. Qc1 {[%clk 0:00:41.8]} 21... Rc4 {[%clk 0:01:07.2]}
22. g4 {[%clk 0:00:41.6]} 22... Rxc3 {[%clk 0:00:59.8]} 23. Qb2 {[%clk
0:00:36.8]} 23... Nc4 {[%clk 0:00:59.9]} 0-1